fUST/lending_fUST_20240812
["ID","MTS","AMOUNT","RATE_DAILY","PERIOD"]
[334684937,1723469455656,-862.33,0.00021369,3]
[334684938,1723469455665,-500.0,0.00021369,3]
[334684939,1723469455674,-500.0,0.00021369,3]
[334684940,1723469455683,-500.0,0.00021369,3]
[334684941,1723469455692,-336.09245174,0.00021369,3]
[334684942,1723469455702,-500.0,0.00021369,3]
[334684943,1723469455711,-323.33109887,0.00021369,3]
[334684944,1723469455720,-500.0,0.00021369,3]
[334684945,1723469455730,-500.0,0.00021369,3]
[334684946,1723469455740,-500.0,0.00021369,3]
[334684947,1723469455749,-677.54,0.00021369,3]
[334684948,1723469455758,-500.0,0.00021369,3]
[334684949,1723469455767,-500.0,0.00021369,3]
[334684950,1723469455776,-523.76271671,0.00021369,3]
[334684951,1723469455785,-500.0,0.00021369,3]
[334684952,1723469455794,-500.0,0.00021369,3]
[334684953,1723469455804,-500.0,0.00021369,3]
[334684954,1723469455813,-500.0,0.00021369,3]
[334684955,1723469455823,-500.0,0.00021369,3]
[334684956,1723469455832,-1210.07,0.00021369,3]
[334684957,1723469455841,-523.20088517,0.00021369,3]
[334684958,1723469455850,-500.0,0.00021369,3]
[334684959,1723469455860,-500.0,0.00021369,3]
[334684960,1723469455870,-500.0,0.00021369,3]
[334684961,1723469455879,-500.0,0.00021369,3]
[334684962,1723469455892,-500.0,0.00021369,3]
[334684963,1723469455904,-500.0,0.00021369,3]
[334684964,1723469455913,-744.34,0.00021369,3]
[334684965,1723469455922,-500.0,0.00021369,3]
[334684966,1723469455933,-504.94502571,0.00021369,3]
[334684967,1723469455942,-500.0,0.00021369,3]
[334684968,1723469455951,-500.0,0.00021369,3]
[334684969,1723469455960,-505.39917846,0.00021369,3]
[334684970,1723469455971,-500.0,0.00021369,3]
[334684971,1723469455980,-908.63,0.00021369,3]
[334684972,1723469455990,-506.08531046,0.00021369,3]
[334684973,1723469455999,-503.03818319,0.00021369,3]
[334684974,1723469456008,-622.07554844,0.00021369,3]
[334684975,1723469456017,-2774.04,0.00021369,3]
[334684976,1723469456026,-568.52,0.00021369,3]
[334684977,1723469456036,-151.0,0.00021369,2]
[334684978,1723469456046,-151.0,0.00021369,2]
[334684979,1723469456055,-151.0,0.00021369,2]
[334684980,1723469456064,-151.0,0.00021369,2]
[334684981,1723469456073,-500.0,0.00021369,3]
[334684982,1723469456083,-500.0,0.00021369,3]
[334684983,1723469456091,-500.0,0.00021369,3]
[334684984,1723469456101,-500.0,0.00021369,3]
[334684985,1723469456110,-462.4695468,0.00021369,3]
[334684986,1723469456119,-500.0,0.00021369,3]
[334684987,1723469456128,-500.0,0.00021369,3]
[334684988,1723469456137,-390.04555,0.00021369,2]
[334684989,1723469456150,-390.04555,0.00021369,2]
[334684990,1723469456159,-1030.4,0.00021369,3]
[334684991,1723469456169,-390.04555,0.00021369,2]
[334684992,1723469456178,-390.04555,0.00021369,2]
[334684993,1723469456188,-817.35,0.00021369,3]
[334684994,1723469456197,-500.0,0.00021369,3]
[334684995,1723469456206,-500.0,0.00021369,3]
[334684996,1723469456215,-500.0,0.00021369,3]
[334684997,1723469456224,-990.53,0.00021369,3]
[334684998,1723469456232,-500.0,0.00021369,3]
[334684999,1723469456242,-500.0,0.00021369,3]
[334685000,1723469456251,-377.30891,0.00021369,2]
[334685001,1723469456260,-500.0,0.00021369,3]
[334685002,1723469456270,-500.0,0.00021369,3]
[334685003,1723469456278,-377.30891,0.00021369,2]
[334685004,1723469456288,-991.56,0.00021369,3]
[334685005,1723469456297,-377.30891,0.00021369,2]
[334685006,1723469456306,-377.30891,0.00021369,2]
[334685007,1723469456315,-510.02733992,0.00021369,3]
[334685008,1723469456324,-500.0,0.00021369,3]
[334685009,1723469456334,-500.0,0.00021369,3]
[334685010,1723469456343,-1364.52,0.00021369,3]
[334685011,1723469456352,-876.13,0.00021369,3]
[334685012,1723469456361,-500.0,0.00021369,3]
[334685013,1723469456370,-500.0,0.00021369,3]
[334685014,1723469456379,-500.0,0.00021369,3]
[334685015,1723469456389,-500.0,0.00021369,3]
[334685016,1723469456400,-500.0,0.00021369,3]
[334685017,1723469456409,-500.0,0.00021369,3]
[334685018,1723469456418,-500.0,0.00021369,3]
[334685019,1723469456428,-679.91,0.00021369,3]
[334685020,1723469456437,-503.04968747,0.00021369,3]
[334685021,1723469456447,-504.0,0.00021369,3]
[334685022,1723469456457,-500.0,0.00021369,3]
[334685023,1723469456465,-500.0,0.00021369,3]
[334685024,1723469456475,-500.0,0.00021369,3]
[334685025,1723469456483,-1002.93,0.00021369,3]
[334685026,1723469456492,-762.2,0.00021369,3]
[334685027,1723469456502,-597.27327732,0.00021369,3]
[334685028,1723469456511,-1147.29,0.00021369,3]
[334685029,1723469456521,-500.0,0.00021369,3]
[334685030,1723469456530,-505.51406527,0.00021369,3]
[334685031,1723469456539,-500.0,0.00021369,3]
[334685032,1723469456549,-500.0,0.00021369,3]
[334685033,1723469456558,-500.0,0.00021369,3]
[334685034,1723469456568,-205.116128,0.00021369,2]
[334685035,1723469456577,-500.0,0.00021369,3]
[334685036,1723469456587,-205.116128,0.00021369,2]
[334685037,1723469456596,-631.6,0.00021369,3]
[334685038,1723469456605,-500.0,0.00021369,3]
[334685039,1723469456614,-500.0,0.00021369,3]
[334685040,1723469456623,-1557.04,0.00021369,3]
[334685041,1723469456632,-575.28,0.00021369,3]
[334685042,1723469456642,-875.31,0.00021369,3]
[334685043,1723469456655,-500.0,0.00021369,3]
[334685044,1723469456666,-405.80504432,0.00021369,3]
[334685045,1723469456676,-609.93,0.00021369,3]
[334685046,1723469456685,-625.18,0.00021369,3]
[334685047,1723469456695,-500.0,0.00021369,3]
[334685048,1723469456704,-500.0,0.00021369,3]
[334685049,1723469456713,-500.0,0.00021369,3]
[334685050,1723469456724,-791.62,0.00021369,3]
[334685051,1723469456733,-500.0,0.00021369,3]
[334685052,1723469456744,-500.0,0.00021369,3]
[334685053,1723469456753,-500.0,0.00021369,3]
[334685054,1723469456762,-500.0,0.00021369,3]
[334685055,1723469456771,-634.92,0.00021369,3]
[334685056,1723469456781,-606.89,0.00021369,3]
[334685057,1723469456790,-500.0,0.00021369,3]
[334685058,1723469456800,-500.0,0.00021369,3]
[334685059,1723469456810,-500.0,0.00021369,3]
[334685060,1723469456819,-829.85,0.00021369,3]
[334685061,1723469456828,-2119.11,0.00021369,3]
[334685062,1723469456838,-597.81,0.00021369,3]
[334685063,1723469456847,-500.0,0.00021369,3]
[334685064,1723469456856,-500.0,0.00021369,3]
[334685065,1723469456865,-1000.0,0.00021369,2]
[334685066,1723469456875,-1000.0,0.00021369,2]
[334685067,1723469456887,-1000.0,0.00021369,2]
[334685068,1723469456899,-1000.0,0.00021369,2]
[334685069,1723469456910,-1000.0,0.00021369,2]
[334685070,1723469456919,-1000.0,0.00021369,2]
[334685071,1723469456928,-1000.0,0.00021369,2]
[334685072,1723469456938,-1000.0,0.00021369,2]
[334685073,1723469456947,-1000.0,0.00021369,2]
[334685074,1723469456958,-1000.0,0.00021369,2]
[334685075,1723469456969,-1000.0,0.00021369,2]
[334685076,1723469456978,-1424.09,0.00021369,3]
[334685077,1723469456987,-1000.0,0.00021369,2]
[334685078,1723469456996,-306.06218,0.00021369,2]
[334685079,1723469457006,-500.0,0.00021369,3]
[334685080,1723469457015,-500.0,0.00021369,3]
[334685081,1723469457025,-500.0,0.00021369,3]
[334685082,1723469457035,-1052.48,0.00021369,3]
[334685083,1723469457044,-709.13,0.00021369,3]
[334685084,1723469457053,-581.43,0.00021369,3]
[334685085,1723469457063,-500.0,0.00021369,3]
[334685086,1723469457073,-500.0,0.00021369,3]
[334685087,1723469457083,-151.0,0.00021369,2]
[334685088,1723469457092,-521.61,0.00021369,3]
[334685089,1723469457102,-1053.49,0.00021369,3]
[334685090,1723469457111,-500.0,0.00021369,3]
[334685091,1723469457121,-1614.62,0.00021369,3]
[334685092,1723469457130,-518.21,0.00021369,3]
[334685093,1723469457140,-511.905593,0.00021369,2]
[334685094,1723469457153,-1139.51,0.00021369,3]
[334685095,1723469457165,-511.905593,0.00021369,2]
[334685096,1723469457176,-500.0,0.00021369,3]
[334685097,1723469457186,-500.0,0.00021369,3]
[334685098,1723469457195,-1544.26,0.00021369,3]
[334685099,1723469457306,-545.30960326,0.00021369,3]
[334685100,1723469457316,-1451.28,0.00021369,3]
[334685101,1723469457326,-500.0,0.00021369,2]
[334685102,1723469457336,-1482.26,0.00021369,3]
[334685103,1723469457345,-502.58248645,0.00021369,3]
[334685104,1723469457355,-502.59732915,0.00021369,3]
[334685105,1723469457364,-500.0,0.00021369,3]
[334685106,1723469457374,-500.0,0.00021369,3]
[334685107,1723469457383,-500.0,0.00021369,3]
[334685108,1723469457393,-500.0,0.00021369,3]
[334685109,1723469457407,-2342.91,0.00021369,3]
[334685110,1723469457416,-500.0,0.00021369,3]
[334685111,1723469457426,-1334.65,0.00021369,3]
[334685112,1723469457436,-500.0,0.00021369,3]
[334685113,1723469457446,-792.5,0.00021369,3]
[334685114,1723469457456,-500.0,0.00021369,3]
[334685115,1723469457466,-413.764054,0.00021369,2]
[334685116,1723469457476,-500.0,0.00021369,3]
[334685117,1723469457486,-503.68425534,0.00021369,3]
[334685118,1723469457495,-413.764054,0.00021369,2]
[334685119,1723469457505,-6539.4,0.00021369,3]
[334685120,1723469457515,-500.0,0.00021369,3]
[334685121,1723469457524,-506.98815353,0.00021369,3]
[334685122,1723469457534,-534.12,0.00021369,2]
[334685123,1723469457546,-1001.68,0.00021369,3]
[334685124,1723469457556,-500.0,0.00021369,3]
[334685125,1723469457566,-2046.93,0.00021369,3]
[334685126,1723469457575,-500.0,0.00021369,3]
[334685127,1723469457585,-1795.55,0.00021369,3]
[334685128,1723469457594,-500.0,0.00021369,3]
[334685129,1723469457605,-500.0,0.00021369,3]
[334685130,1723469457615,-500.0,0.00021369,3]
[334685131,1723469457625,-1931.14,0.00021369,3]
[334685132,1723469457635,-500.0,0.00021369,3]
[334685133,1723469457645,-500.0,0.00021369,3]
[334685134,1723469457662,-505.27859137,0.00021369,3]
[334685135,1723469457672,-500.0,0.00021369,3]
[334685136,1723469457682,-1101.24,0.00021369,3]
[334685137,1723469457692,-529.89,0.00021369,3]
[334685138,1723469457702,-500.0,0.00021369,3]
[334685139,1723469457711,-761.7,0.00021369,3]
[334685140,1723469457721,-769.72,0.00021369,3]
[334685141,1723469457732,-500.0,0.00021369,3]
[334685142,1723469457742,-1645.37,0.00021369,3]
[334685143,1723469457752,-530.52,0.00021369,3]
[334685144,1723469457762,-536.4,0.00021369,3]
[334685145,1723469457772,-500.0,0.00021369,3]
[334685146,1723469457781,-854.3,0.00021369,3]
[334685147,1723469457792,-7227.56,0.00021369,3]
[334685148,1723469457801,-500.0,0.00021369,3]
[334685149,1723469457811,-500.0,0.00021369,3]
[334685150,1723469457821,-500.0,0.00021369,3]
[334685151,1723469457830,-743.55,0.00021369,3]
[334685152,1723469457840,-1337.68,0.00021369,3]
[334685153,1723469457849,-500.0,0.00021369,3]
[334685154,1723469457859,-500.0,0.00021369,3]
[334685155,1723469457869,-500.0,0.00021369,3]
[334685156,1723469457878,-2582.81,0.00021369,3]
[334685157,1723469457892,-500.0,0.00021369,3]
[334685158,1723469457904,-500.0,0.00021369,3]
[334685159,1723469457914,-827.28,0.00021369,3]
[334685160,1723469457923,-500.0,0.00021369,3]
[334685161,1723469457934,-786.74,0.00021369,3]
[334685162,1723469457944,-1740.42,0.00021369,3]
[334685163,1723469457953,-1325.33,0.00021369,3]
[334685164,1723469457964,-500.0,0.00021369,3]
[334685165,1723469457973,-500.0,0.00021369,3]
[334685166,1723469457983,-932.14,0.00021369,3]
[334685167,1723469457993,-501.44447813,0.00021369,3]
[334685168,1723469458003,-500.0,0.00021369,3]
[334685169,1723469458012,-500.0,0.00021369,3]
[334685170,1723469458021,-1941.27,0.00021369,3]
[334685171,1723469458031,-500.0,0.00021369,3]
[334685172,1723469458041,-587.25,0.00021369,3]
[334685173,1723469458050,-503.07808536,0.00021369,3]
[334685174,1723469458060,-500.0,0.00021369,3]
[334685175,1723469458070,-500.0,0.00021369,3]
[334685176,1723469458080,-47.58850272,0.00021369,3]
[334685177,1723469458320,-452.41149728,0.00021369,3]
[334685178,1723469458330,-500.0,0.00021369,3]
[334685179,1723469458339,-3749.33,0.00021369,3]
[334685180,1723469458348,-8703.45,0.00021369,3]
[334685181,1723469458357,-706.021002,0.00021369,2]
[334685182,1723469458367,-706.021002,0.00021369,2]
[334685183,1723469458376,-2530.68,0.00021369,3]
[334685184,1723469458385,-500.0,0.00021369,3]
[334685185,1723469458394,-1828.7,0.00021369,3]
[334685186,1723469458405,-706.021002,0.00021369,2]
[334685187,1723469458415,-151.0,0.00021369,2]
[334685188,1723469458425,-706.021002,0.00021369,2]
[334685189,1723469458436,-151.0,0.00021369,2]
[334685190,1723469458445,-3946.28794818,0.00021369,3]
[334685191,1723469458592,-569.21803029,0.00017019,2]
[334685192,1723469458602,-280.358,0.00020715,2]
[334685193,1723469458612,-500.0,0.00020821,3]
[334685194,1723469458622,-500.0,0.00020821,3]
[334685195,1723469458632,-500.0,0.00021095,3]
[334685196,1723469458641,-500.0,0.00021095,3]
[334685197,1723469458654,-1450.92205182,0.00021369,3]
[334685198,1723469458663,-468.97644157,0.00021369,3]
[334685199,1723469458769,-675.95,0.00021369,3]
[334685200,1723469458780,-500.0,0.00021369,3]
[334685201,1723469458790,-2519.31,0.00021369,3]
[334685202,1723469458799,-264.289944,0.00021369,2]
[334685203,1723469458809,-264.289944,0.00021369,2]
[334685204,1723469458818,-500.0,0.00021369,3]
[334685205,1723469458827,-1577.49,0.00021369,3]
[334685206,1723469458837,-264.289944,0.00021369,2]
[334685207,1723469458846,-264.289944,0.00021369,2]
[334685208,1723469458855,-500.0,0.00021369,3]
[334685209,1723469458865,-500.0,0.00021369,3]
[334685210,1723469458875,-500.0,0.00021369,3]
[334685211,1723469458885,-500.0,0.00021369,3]
[334685212,1723469458899,-500.0,0.00021369,3]
[334685213,1723469458910,-500.0,0.00021369,3]
[334685214,1723469458919,-534.75286996,0.00021369,3]
[334685215,1723469458931,-500.0,0.00021369,3]
[334685216,1723469458940,-1656.99,0.00021369,3]
[334685217,1723469458949,-1691.43,0.00021369,3]
[334685218,1723469458961,-500.0,0.00021369,3]
[334685219,1723469458971,-2631.68,0.00021369,3]
[334685220,1723469458980,-988.56,0.00021369,3]
[334685221,1723469458989,-151.0,0.00021369,2]
[334685222,1723469458999,-151.0,0.00021369,2]
[334685223,1723469459008,-1109.71,0.00021369,3]
[334685224,1723469459018,-500.0,0.00021369,3]
[334685225,1723469459027,-500.0,0.00021369,3]
[334685226,1723469459037,-12516.51,0.00021369,3]
[334685227,1723469459047,-668.98,0.00021369,3]
[334685228,1723469459057,-1244.984602,0.00021369,2]
[334685229,1723469459067,-1244.984602,0.00021369,2]
[334685230,1723469459078,-2464.56,0.00021369,3]
[334685231,1723469459087,-500.0,0.00021369,3]
[334685232,1723469459096,-500.0,0.00021369,3]
[334685233,1723469459106,-1244.984602,0.00021369,2]
[334685234,1723469459115,-1244.984602,0.00021369,2]
[334685235,1723469459125,-500.0,0.00021369,3]
[334685236,1723469459134,-1609.68,0.00021369,3]
[334685237,1723469459143,-825.74,0.00021369,3]
[334685238,1723469459155,-500.0,0.00021369,3]
[334685239,1723469459165,-500.0,0.00021369,3]
[334685240,1723469459174,-509.78177901,0.00021369,3]
[334685241,1723469459183,-3882.9,0.00021369,3]
[334685242,1723469459193,-13392.86,0.00021369,3]
[334685243,1723469459203,-1157.59,0.00021369,3]
[334685244,1723469459213,-500.0,0.00021369,3]
[334685245,1723469459222,-500.0,0.00021369,3]
[334685246,1723469459233,-500.0,0.00021369,3]
[334685247,1723469459243,-338.398796,0.00021369,2]
[334685248,1723469459252,-954.32,0.00021369,3]
[334685249,1723469459262,-2248.77,0.00021369,3]
[334685250,1723469459271,-500.0,0.00021369,3]
[334685251,1723469459280,-500.0,0.00021369,3]
[334685252,1723469459290,-1443.84,0.00021369,3]
[334685253,1723469459299,-338.398788,0.00021369,2]
[334685254,1723469459308,-500.0,0.00021369,3]
[334685255,1723469459318,-1824.79,0.00021369,3]
[334685256,1723469459327,-500.0,0.00021369,3]
[334685257,1723469459337,-589.532529,0.00021369,2]
[334685258,1723469459346,-2252.73,0.00021369,3]
[334685259,1723469459355,-500.0,0.00021369,3]
[334685260,1723469459364,-1405.2,0.00021369,3]
[334685261,1723469459374,-2168.74,0.00021369,3]
[334685262,1723469459383,-744.54,0.00021369,3]
[334685263,1723469459392,-589.532532,0.00021369,2]
[334685264,1723469459403,-395.118309,0.00021369,2]
[334685265,1723469459413,-632.82,0.00021369,3]
[334685266,1723469459422,-500.0,0.00021369,3]
[334685267,1723469459432,-395.118311,0.00021369,2]
[334685268,1723469459441,-4498.19,0.00021369,3]
[334685269,1723469459451,-500.0,0.00021369,3]
[334685270,1723469459461,-1142.9,0.00021369,3]
[334685271,1723469459470,-500.0,0.00021369,3]
[334685272,1723469459479,-779.72,0.00021369,3]
[334685273,1723469459489,-998.91,0.00021369,3]
[334685274,1723469459498,-500.0,0.00021369,3]
[334685275,1723469459507,-500.0,0.00021369,3]
[334685276,1723469459517,-1415.09,0.00021369,3]
[334685277,1723469459526,-2354.1,0.00021369,3]
[334685278,1723469459535,-527.41057258,0.00021369,3]
[334685279,1723469459544,-932.5,0.00021369,3]
[334685280,1723469459554,-500.0,0.00021369,3]
[334685281,1723469459563,-1240.38,0.00021369,3]
[334685282,1723469459572,-500.0,0.00021369,3]
[334685283,1723469459582,-649.7,0.00021369,3]
[334685284,1723469459591,-500.0,0.00021369,3]
[334685285,1723469459600,-500.0,0.00021369,3]
[334685286,1723469459610,-2172.06,0.00021369,3]
[334685287,1723469459620,-500.0,0.00021369,3]
[334685288,1723469459629,-314.555463,0.00021369,2]
[334685289,1723469459638,-1222.02,0.00021369,3]
[334685290,1723469459649,-6707.8,0.00021369,3]
[334685291,1723469459660,-314.555469,0.00021369,2]
[334685292,1723469459669,-500.0,0.00021369,3]
[334685293,1723469459678,-500.0,0.00021369,3]
[334685294,1723469459688,-499.99855932,0.00021369,3]
[334685295,1723469459697,-153.0,0.0002137,2]
[334685296,1723469459707,-153.0,0.0002137,2]
[334685297,1723469459717,-153.0,0.0002137,2]
[334685298,1723469459726,-294.5252441,0.0002137,2]
[334685299,1723469459735,-153.0,0.0002137,2]
[334685300,1723469459745,-368.0507281,0.0002137,2]
[334685301,1723469459755,-153.0,0.0002137,2]
[334685302,1723469459764,-153.0,0.0002137,2]
[334685303,1723469459774,-153.0,0.0002137,2]
[334685304,1723469459784,-3000.0,0.0002137,2]
[334685305,1723469459794,-208.92795594,0.00021373,2]
[334685306,1723469459803,-3000.0,0.0002138,2]
[334685307,1723469459812,-170.238635,0.0002138,2]
[334685308,1723469459823,-511.905593,0.0002138,2]
[334685309,1723469459833,-511.905593,0.0002138,2]
[334685310,1723469459843,-413.764054,0.0002138,2]
[334685311,1723469459853,-413.764054,0.0002138,2]
[334685312,1723469459864,-3000.0,0.0002139,2]
[334685313,1723469459874,-3000.0,0.000214,2]
[334685314,1723469459884,-3000.0,0.0002141,2]
[334685315,1723469459896,-500.0,0.0002141,2]
[334685316,1723469459911,-3000.0,0.0002142,2]
[334685317,1723469459921,-3000.0,0.0002143,2]
[334685318,1723469459932,-3000.0,0.0002144,2]
[334685319,1723469459942,-4457.124666,0.0002145,2]
[334685320,1723469459951,-5439.20086107,0.00021505,2]
[334685321,1723469459963,-792.84998924,0.00021546,2]
[334685322,1723469459973,-33145.12,0.000216,2]
[334685323,1723469459984,-151.0,0.000216,2]
[334685324,1723469459994,-1244.984602,0.000216,2]
[334685325,1723469460005,-1244.984599,0.000216,2]
[334685326,1723469460015,-507.2578709,0.00021643,3]
[334685327,1723469460024,-529.41,0.00021643,3]
[334685328,1723469460033,-500.0,0.00021643,3]
[334685329,1723469460043,-500.0,0.00021643,3]
[334685330,1723469460053,-500.0,0.00021643,3]
[334685331,1723469460063,-350.52554033,0.00021643,3]
[334685332,1723469460073,-593.5,0.00021643,3]
[334685333,1723469460083,-500.0,0.00021643,3]
[334685334,1723469460092,-500.0,0.00021643,3]
[334685335,1723469460102,-500.0,0.00021643,3]
[334685336,1723469460112,-500.0,0.00021643,3]
[334685337,1723469460122,-551.48,0.00021643,3]
[334685338,1723469460131,-668.11,0.00021643,3]
[334685339,1723469460141,-500.0,0.00021643,3]
[334685340,1723469460155,-500.0,0.00021643,3]
[334685341,1723469460165,-500.0,0.00021643,3]
[334685342,1723469460175,-632.05,0.00021643,3]
[334685343,1723469460185,-844.16,0.00021643,3]
[334685344,1723469460195,-517.57,0.00021643,3]
[334685345,1723469460206,-862.33,0.00021643,3]
[334685346,1723469460216,-500.0,0.00021643,3]
[334685347,1723469460226,-500.0,0.00021643,3]
[334685348,1723469460236,-500.0,0.00021643,3]
[334685349,1723469460246,-500.0,0.00021643,3]
[334685350,1723469460256,-500.0,0.00021643,3]
[334685351,1723469460267,-500.0,0.00021643,3]
[334685352,1723469460277,-500.0,0.00021643,3]
[334685353,1723469460287,-677.54,0.00021643,3]
[334685354,1723469460384,-401.64744829,0.00021643,3]
[334685355,1723469460395,-530.83196321,0.00021643,3]
[334685356,1723469460410,-500.0,0.00021643,3]
[334685357,1723469460420,-500.0,0.00021643,3]
[334685358,1723469460430,-500.0,0.00021643,3]
[334685359,1723469460439,-500.0,0.00021643,3]
[334685360,1723469460450,-500.0,0.00021643,3]
[334685361,1723469460464,-1210.07,0.00021643,3]
[334685362,1723469460474,-500.0,0.00021643,3]
[334685363,1723469460483,-500.0,0.00021643,3]
[334685364,1723469460493,-513.34179872,0.00021643,3]
[334685365,1723469460502,-500.0,0.00021643,3]
[334685366,1723469460512,-513.96709265,0.00021643,3]
[334685367,1723469460522,-500.0,0.00021643,3]
[334685368,1723469460531,-744.34,0.00021643,3]
[334685369,1723469460541,-500.0,0.00021643,3]
[334685370,1723469460551,-500.0,0.00021643,3]
[334685371,1723469460561,-500.0,0.00021643,3]
[334685372,1723469460570,-908.63,0.00021643,3]
[334685373,1723469460580,-207.41790081,0.00021643,3]
[334685374,1723469460590,-2774.04,0.00021643,3]
[334685375,1723469460601,-568.52,0.00021643,3]
[334685376,1723469460612,-151.0,0.00021643,2]
[334685377,1723469460621,-151.0,0.00021643,2]
[334685378,1723469460631,-151.0,0.00021643,2]
[334685379,1723469460641,-229.64207,0.00021643,2]
[334685380,1723469460653,-500.0,0.00021643,3]
[334685381,1723469460663,-500.0,0.00021643,3]
[334685382,1723469460678,-500.0,0.00021643,3]
[334685383,1723469460688,-500.0,0.00021643,3]
[334685384,1723469460697,-500.0,0.00021643,3]
[334685385,1723469460707,-500.0,0.00021643,3]
[334685386,1723469460717,-390.04555,0.00021643,2]
[334685387,1723469460726,-390.04555,0.00021643,2]
[334685388,1723469460736,-1030.4,0.00021643,3]
[334685389,1723469460745,-390.04555,0.00021643,2]
[334685390,1723469460755,-817.35,0.00021643,3]
[334685391,1723469460766,-390.04555,0.00021643,2]
[334685392,1723469460776,-500.0,0.00021643,3]
[334685393,1723469460786,-500.0,0.00021643,3]
[334685394,1723469460796,-500.0,0.00021643,3]
[334685395,1723469460805,-990.53,0.00021643,3]
[334685396,1723469460815,-500.0,0.00021643,3]
[334685397,1723469460825,-500.0,0.00021643,3]
[334685398,1723469460835,-284.00825652,0.00021643,3]
[334685399,1723469460844,-500.0,0.00021643,3]
[334685400,1723469460854,-377.30891,0.00021643,2]
[334685401,1723469460864,-377.30891,0.00021643,2]
[334685402,1723469460874,-991.56,0.00021643,3]
[334685403,1723469460885,-377.30891,0.00021643,2]
[334685404,1723469460896,-377.30891,0.00021643,2]
[334685405,1723469460910,-500.0,0.00021643,3]
[334685406,1723469460919,-500.0,0.00021643,3]
[334685407,1723469460930,-1364.52,0.00021643,3]
[334685408,1723469460939,-876.13,0.00021643,3]
[334685409,1723469460948,-500.0,0.00021643,3]
[334685410,1723469460959,-509.26425576,0.00021643,3]
[334685411,1723469460970,-500.0,0.00021643,3]
[334685412,1723469460980,-500.0,0.00021643,3]
[334685413,1723469460989,-500.0,0.00021643,3]
[334685414,1723469460999,-500.0,0.00021643,3]
[334685415,1723469461009,-500.0,0.00021643,3]
[334685416,1723469461019,-679.91,0.00021643,3]
[334685417,1723469461029,-500.0,0.00021643,3]
[334685418,1723469461039,-500.0,0.00021643,3]
[334685419,1723469461049,-500.0,0.00021643,3]
[334685420,1723469461059,-1002.93,0.00021643,3]
[334685421,1723469461069,-762.2,0.00021643,3]
[334685422,1723469461079,-1147.29,0.00021643,3]
[334685423,1723469461089,-500.0,0.00021643,3]
[334685424,1723469461099,-500.0,0.00021643,3]
[334685425,1723469461110,-500.0,0.00021643,3]
[334685426,1723469461119,-500.0,0.00021643,3]
[334685427,1723469461129,-205.116128,0.00021643,2]
[334685428,1723469461139,-205.116128,0.00021643,2]
[334685429,1723469461149,-500.0,0.00021643,3]
[334685430,1723469461162,-205.116128,0.00021643,2]
[334685431,1723469461171,-205.116128,0.00021643,2]
[334685432,1723469461181,-631.6,0.00021643,3]
[334685433,1723469461190,-500.0,0.00021643,3]
[334685434,1723469461200,-500.0,0.00021643,3]
[334685435,1723469461209,-1557.04,0.00021643,3]
[334685436,1723469461218,-575.28,0.00021643,3]